bitfinex-derivatives/quotes_SOLF0:USTF0_20250623
["timestamp","ask_amount","ask_price","bid_price","bid_amount"]
[1750686510108,90.65852844,136.07,135.9,84.1363]
[1750686510109,35.36973291,136.06,135.95,32.38960207]
[1750686510408,2.98013084,136.05,135.94,32.38960207]
[1750686510610,32.38960207,136.03,135.91,32.38960207]
[1750686510799,35.35634871,136.03,135.91,32.38960207]
[1750686511003,32.38960207,136.03,135.91,32.38960207]
[1750686511203,2.96674664,136.04,135.94,32.38960207]
[1750686511504,2.96674664,136.05,135.9,84.1363]
[1750686511713,81.88,136.07,135.95,32.38960207]
[1750686511904,114.26960207,136.07,135.95,32.38960207]
[1750686512103,640.0096,136.1,136.01,32.38960207]
[1750686512104,2.3521,136.1,136.01,32.38960207]
[1750686512304,2.79290935,136.14,136.04,32.38960207]
[1750686512512,2.79290935,136.14,136.07,32.38960207]
[1750686512709,635.16,136.18,136.07,32.38960207]
[1750686512913,635.16,136.18,136.09,32.3088241]
[1750686513111,7.3412,136.17,136.13,7.3432]
[1750686513410,667.48471342,136.18,136.06,34.59891342]
[1750686513609,7.3418,136.16,136.11,7.344]
[1750686513807,667.48471342,136.18,136.06,34.59891342]
[1750686514213,7.3424,136.15,136.06,34.59891342]
[1750686514416,2.79104721,136.17,136.06,34.59891342]
[1750686514601,2.79104721,136.17,136.06,2.2742]
[1750686514802,32.32471342,136.15,135.99,2.2865]
[1750686515007,83.7264,136.14,136.0,2.3121]
[1750686515214,7.3457,136.09,136.0,2.3121]
[1750686515510,32.32471342,136.11,136.0,2.3121]
[1750686515707,5.04340901,136.13,136.0,2.3121]
[1750686515907,32.32471342,136.12,136.0,2.3121]
[1750686516107,2.2519,136.13,136.03,32.3518415]
[1750686516309,2.2519,136.13,136.03,32.3379049]
[1750686516734,32.3379049,136.12,136.01,32.3379049]
[1750686516914,32.3379049,136.09,136.0,2.3121]
[1750686517206,2.2519,136.13,136.0,2.3121]
[1750686517207,81.34,136.08,136.0,2.3121]
[1750686517411,81.34,136.08,136.0,34.6500049]
[1750686518017,83.5919,136.13,136.02,32.3379049]
[1750686518515,83.5919,136.13,136.0,2.3121]
[1750686518715,32.3379049,136.11,136.0,2.3121]
[1750686518912,83.5919,136.13,136.04,7.3481]
[1750686518913,39.6841049,136.08,136.04,7.3481]
[1750686519218,32.3379049,136.1,135.99,32.3379049]
[1750686519614,32.3379049,136.1,135.98,2.3568]
[1750686521119,7.3466,136.07,136.03,7.3486]
[1750686521320,7.3466,136.07,135.98,2.3568]
[1750686521619,32.3379049,136.1,136.02,7.3489]
[1750686522018,32.3379049,136.07,135.98,2.3568]
[1750686522317,32.3379049,136.07,135.94,32.3379049]
[1750686522318,81.34,136.06,135.94,32.3379049]
[1750686522520,81.34,136.06,135.94,34.7327049]
[1750686522711,83.7049,136.06,135.94,34.7327049]
[1750686522909,634.88,136.09,136.0,32.3379049]
[1750686523315,634.88,136.09,136.06,7.347]
[1750686523510,634.88,136.09,136.0,32.3379049]
[1750686523708,32.3379049,136.07,135.97,32.3379049]
[1750686523909,7.3473,136.06,136.02,7.3493]
[1750686524113,667.2179049,136.09,135.96,81.34]
[1750686525412,7.3469,136.07,135.96,81.34]
[1750686525606,634.88,136.09,135.98,32.3379049]
[1750686526421,7.3469,136.07,136.03,7.3483]
[1750686526615,634.88,136.09,135.98,32.3379049]
[1750686526816,634.88,136.09,136.06,7.3468]
[1750686527018,634.88,136.09,135.98,32.3379049]
[1750686527216,634.88,136.09,135.99,32.3379049]
[1750686527613,634.88,136.09,135.97,32.3379049]
[1750686527818,634.88,136.09,136.0,32.3379049]
[1750686528018,642.2256,136.09,136.06,7.3468]
[1750686528314,83.7049,136.12,136.03,32.3379049]
[1750686528618,81.34,136.17,136.06,32.3379049]
[1750686528920,4.7471,136.19,136.17,7.3408]
[1750686529117,634.86,136.2,136.12,32.3379049]
[1750686529313,81.34,136.23,136.15,32.3379049]
[1750686529515,81.34,136.23,136.1,81.34]
[1750686529516,81.34,136.23,136.12,32.28334264]
[1750686529721,113.64302604,136.23,136.1,113.64302604]
[1750686529921,32.30302604,136.2,136.1,113.64302604]
[1750686530119,32.30302604,136.2,136.1,32.30302604]
[1750686530320,2.3793,136.19,136.1,32.30302604]
[1750686530617,7.341,136.18,136.1,32.30302604]
[1750686530825,2.3793,136.19,136.1,32.30302604]
[1750686531024,81.34,136.23,136.13,32.30302604]
[1750686531523,7.3389,136.22,136.19,7.3398]
[1750686531726,81.34,136.23,136.13,32.30302604]
[1750686532118,2.3793,136.26,136.16,32.30302604]
[1750686532321,2.3462,136.31,136.22,32.30302604]
[1750686532513,5.15567903,136.31,136.21,32.24938815]
[1750686532710,5.15567903,136.31,136.18,86.2777]
[1750686532711,37.41957258,136.31,136.18,4.9777]
[1750686532921,37.41957258,136.31,136.19,32.26389355]
[1750686533220,2.3462,136.31,136.22,32.26389355]
[1750686533416,2.3462,136.31,136.2,32.26389355]
[1750686533617,7.3348,136.29,136.2,32.26389355]
[1750686534021,32.26389355,136.27,136.18,2.4887]
[1750686534220,32.26389355,136.27,136.15,34.70439355]
[1750686534221,7.3377,136.24,136.15,32.26389355]
[1750686534521,81.28,136.26,136.15,32.26389355]
[1750686534722,7.3378,136.24,136.2,7.3395]
[1750686534925,83.6669,136.26,136.18,32.26389355]
[1750686535423,83.6669,136.26,136.13,4.6044]
[1750686535931,83.6669,136.26,136.16,32.27085883]
[1750686536220,7.3348,136.29,136.25,7.3365]
[1750686536423,115.87705883,136.31,136.2,32.27085883]
[1750686536620,32.27085883,136.31,136.18,32.27085883]
[1750686537226,32.27085883,136.31,136.15,62.0]
[1750686537527,32.27085883,136.31,136.19,32.27085883]
[1750686538121,83.7415,136.32,136.19,32.27085883]
[1750686538520,7.3351,136.29,136.19,32.27085883]
[1750686538825,83.7415,136.32,136.19,32.27085883]
[1750686539027,7.3351,136.29,136.25,7.3367]
[1750686539226,83.7415,136.32,136.22,32.27085883]
[1750686539423,32.27085883,136.31,136.19,32.27085883]
[1750686539630,32.27085883,136.28,136.16,32.27085883]
[1750686540223,83.7415,136.32,136.22,32.27085883]
[1750686540427,634.16,136.43,136.28,32.27085883]
[1750686540624,17.55705688,136.5,136.2,666.43085883]
[1750686540625,32.27085883,136.47,136.34,32.27085883]
[1750686540827,642.93852844,136.5,136.2,666.43085883]
[1750686540828,2.4051,136.46,136.35,32.27085883]
[1750686541225,8.77852844,136.56,136.41,32.27085883]
[1750686541428,2.3146,136.54,136.41,32.27085883]
[1750686541732,7.3246,136.48,136.4,32.27085883]
[1750686541934,2.4051,136.53,136.43,32.27085883]
[1750686542531,2.4051,136.53,136.39,62.0]
[1750686542731,32.1655586,136.45,136.29,636.4771]
[1750686542928,7.1436,136.44,136.35,32.1655586]
[1750686543122,7.1436,136.44,136.29,634.16]
[1750686543327,32.1655586,136.5,136.29,634.16]
[1750686543533,2.4454,136.47,136.29,32.1655586]
[1750686543835,32.1655586,136.42,136.32,32.1655586]
[1750686544036,81.2,136.41,136.32,32.1655586]
[1750686544236,81.2,136.41,136.29,32.1655586]
[1750686544424,81.2,136.41,136.27,32.1655586]
[1750686544627,113.3655586,136.41,136.25,81.2]
[1750686544832,32.1655586,136.39,136.26,32.1655586]
[1750686545130,32.1655586,136.39,136.25,81.2]
[1750686545338,4.551,136.38,136.25,113.3655586]
[1750686545731,4.551,136.38,136.27,7.3354]
[1750686546036,4.551,136.38,136.25,81.2]
[1750686546233,32.22770753,136.36,136.25,81.2]
[1750686546433,80.92,136.35,136.23,2.4194]
[1750686546633,32.22770753,136.33,136.2,242.66510753]
[1750686546835,633.66,136.34,136.2,242.66510753]
[1750686546836,665.88770753,136.34,136.2,242.66510753]
[1750686547034,633.66,136.34,136.2,210.4374]
[1750686547339,633.66,136.34,136.26,32.24114893]
[1750686547728,36.79214893,136.38,136.32,32.24114893]
[1750686547729,4.551,136.38,136.32,32.24114893]
[1750686547925,2.27,136.38,136.3,32.20395838]
[1750686548128,80.92,136.4,136.3,32.20395838]
[1750686548330,2.4944,136.42,136.33,32.20989287]
[1750686548533,2.4944,136.42,136.36,32.20989287]
[1750686548733,80.92,136.47,136.39,32.20989287]
[1750686549433,80.92,136.47,136.33,633.66]
[1750686549627,80.92,136.47,136.35,32.18372975]
[1750686549833,113.10372975,136.47,136.35,32.18372975]
[1750686550028,32.19275762,136.46,136.34,32.19275762]
[1750686550232,32.19275762,136.46,136.32,32.19275762]
[1750686550439,80.92,136.47,136.35,32.19275762]
[1750686550646,80.92,136.47,136.3,80.92]
[1750686550837,80.92,136.47,136.31,62.0]
[1750686551140,2.3175,136.49,136.4,32.1989157]
[1750686551345,2.3175,136.49,136.31,62.0]
[1750686551346,2.3175,136.49,136.37,32.1989157]
[1750686551537,32.1989157,136.46,136.31,142.92]
[1750686551739,32.1989157,136.4,136.29,32.1989157]
[1750686552039,80.92,136.39,136.26,2.4881]
[1750686552239,208.04,136.45,136.25,32.1989157]
[1750686552240,32.1989157,136.37,136.25,32.1989157]
[1750686552439,80.92,136.37,136.27,7.3356]
[1750686552641,32.1989157,136.35,136.23,80.92]
[1750686553141,32.1989157,136.32,136.22,2.4595]
[1750686553336,633.52,136.35,136.21,32.1989157]
[1750686553536,32.1989157,136.31,136.19,32.1989157]
[1750686553741,8.77852844,136.46,136.22,32.1989157]
[1750686554039,32.2401878,136.35,136.28,7.3349]
[1750686554241,113.15964551,136.37,136.25,32.23964551]
[1750686554441,7.3336,136.32,136.27,7.3356]
[1750686554737,32.23964551,136.37,136.25,32.23964551]
[1750686555340,32.23964551,136.34,136.23,2.2766]
[1750686555541,32.23964551,136.31,136.2,2.3479]
[1750686555744,7.3368,136.26,136.19,32.23964551]
[1750686556042,32.23964551,136.28,136.19,2.4121]
[1750686556241,7.3378,136.24,136.2,7.3394]
[1750686556440,32.23964551,136.28,136.19,2.4121]
[1750686556941,32.23964551,136.29,136.19,2.4121]
[1750686557139,80.92,136.31,136.19,2.4121]
[1750686557140,32.23964551,136.28,136.19,2.4121]
[1750686557342,80.92,136.31,136.19,2.4121]
[1750686557343,32.23964551,136.22,136.19,2.4121]
[1750686557544,113.17964551,136.24,136.14,4.6814]
[1750686557836,113.17964551,136.24,136.14,32.23964551]
[1750686558037,208.06,136.27,136.13,80.92]
[1750686558236,208.06,136.27,136.16,32.23964551]
[1750686558432,7.338,136.23,136.15,32.23964551]
[1750686558637,32.23964551,136.26,136.16,2.3373]
[1750686558939,32.23964551,136.2,136.08,83.2488]
[1750686559142,113.17964551,136.2,136.08,83.2488]
[1750686559334,7.3426,136.15,136.11,7.3443]
[1750686559545,32.23964551,136.17,136.09,4.7018]
[1750686559742,32.23964551,136.17,136.08,2.3088]
[1750686560139,32.23964551,136.15,136.08,2.3088]
[1750686560340,7.3434,136.13,136.08,2.3088]
[1750686560546,32.23964551,136.15,136.08,2.3088]
[1750686560853,7.3446,136.11,136.06,7.3468]
[1750686561042,80.96,136.14,136.03,113.17964551]
[1750686561043,80.96,136.14,136.04,2.3129]
[1750686561239,80.96,136.14,136.05,32.33224586]
[1750686561439,208.08,136.18,136.05,32.33224586]
[1750686561639,240.40778147,136.18,136.05,32.32778147]
[1750686561846,240.40778147,136.18,136.06,62.0]
[1750686562039,208.08,136.18,136.08,32.32778147]
[1750686562241,80.96,136.2,136.08,32.32778147]
[1750686562443,7.3403,136.19,136.14,7.3424]
[1750686562642,80.96,136.2,136.09,2.4919]
[1750686562938,80.96,136.2,136.11,32.32778147]
[1750686563140,80.96,136.2,136.12,32.29473422]
[1750686563345,80.96,136.2,136.1,32.29473422]
[1750686563848,80.96,136.2,136.09,80.98]
[1750686564053,32.29473422,136.18,136.07,2.4919]
[1750686564254,32.29473422,136.18,136.05,32.29473422]
[1750686564548,80.96,136.2,136.08,32.29473422]
[1750686564753,80.96,136.2,136.09,32.30928335]
[1750686564952,80.96,136.2,136.12,32.30928335]
[1750686565547,80.96,136.2,136.08,80.98]
[1750686565548,80.96,136.2,136.1,32.30403661]
[1750686565748,80.96,136.2,136.16,7.3417]
[1750686566150,80.96,136.2,136.09,34.72743661]
[1750686566457,113.26403661,136.2,136.09,34.72743661]
[1750686566954,7.3405,136.19,136.14,7.3423]
[1750686567155,113.26403661,136.2,136.14,7.3423]
[1750686567357,120.60373661,136.2,136.14,7.3427]
[1750686567552,113.26403661,136.2,136.09,96.72743661]
[1750686567755,113.26403661,136.2,136.09,34.72743661]
[1750686567962,113.26403661,136.2,136.09,2.4234]
[1750686568159,32.30403661,136.17,136.09,2.4234]
[1750686568358,80.96,136.2,136.06,34.81439314]
[1750686568556,113.28759314,136.2,136.06,32.32759314]
[1750686568961,80.96,136.2,136.09,32.32759314]
[1750686569158,633.68,136.25,136.12,32.32759314]
[1750686569365,32.32759314,136.29,136.15,32.32759314]
[1750686569659,32.32759314,136.29,136.1,7.2212]
[1750686569957,32.32759314,136.29,136.15,32.32759314]
[1750686570255,240.48645095,136.3,136.13,32.29122438]
[1750686570453,32.29122438,136.26,136.13,32.29122438]
[1750686570653,32.29122438,136.26,136.1,7.2212]
[1750686570654,240.47122438,136.29,136.16,32.29122438]
[1750686570857,208.18,136.29,136.19,32.29122438]
[1750686571053,7.3356,136.28,136.23,7.3376]
[1750686571250,32.29122438,136.28,136.19,6.9058]
[1750686571562,7.3384,136.23,136.19,14.2458]
[1750686571753,81.0,136.24,136.19,2.2746]
[1750686571957,81.0,136.24,136.15,2.3204]
[1750686572157,88.3376,136.24,136.19,7.3396]
[1750686572656,32.29122438,136.22,136.13,4.6312]
[1750686572862,113.29122438,136.24,136.1,83.2746]
[1750686573059,113.29122438,136.24,136.16,7.3413]
[1750686573259,32.29122438,136.21,136.11,4.6312]
[1750686573459,32.29122438,136.21,136.1,83.2746]
[1750686573654,32.29122438,136.21,136.11,4.5951]
[1750686574054,32.29122438,136.18,136.1,2.2746]
[1750686574257,80.98,136.17,136.1,2.2746]
[1750686574455,32.29122438,136.15,136.1,2.2746]
[1750686574660,7.3455,136.09,136.05,7.3475]
[1750686574863,32.29122438,136.09,135.99,2.2834]
[1750686575056,32.29122438,136.09,135.96,2.4914]
[1750686575361,32.29122438,136.09,135.96,7.0591]
[1750686575674,7.3494,136.02,135.97,7.3515]
[1750686575858,80.88,136.04,135.93,80.88]
[1750686576062,80.88,136.04,135.95,32.29122438]
[1750686576258,80.88,136.09,135.93,80.88]
[1750686576465,80.88,136.09,135.98,32.29122438]
[1750686576662,80.88,136.09,135.99,32.29122438]
[1750686576961,634.08,136.14,135.97,32.29122438]
[1750686576962,32.29122438,136.08,135.97,32.29122438]
[1750686577767,32.29122438,136.05,135.9,7.0591]
[1750686577962,634.08,136.14,135.94,32.29122438]
[1750686578270,634.08,136.14,135.91,62.0]
[1750686578271,7.3481,136.05,135.97,32.29122438]
[1750686578566,7.3481,136.05,135.98,4.8644]
[1750686578956,32.29122438,136.09,135.98,4.8644]
[1750686579160,32.29122438,136.11,135.99,32.29122438]
[1750686579357,32.29122438,136.11,136.0,2.3232]
[1750686579556,321.35122438,136.13,136.01,32.29122438]
[1750686580065,7.3459,136.09,135.99,32.29122438]
[1750686580266,321.35122438,136.13,136.0,2.2667]
[1750686580466,634.08,136.14,135.98,634.4]
[1750686580765,634.08,136.14,136.04,32.29122438]
[1750686580956,634.08,136.14,136.08,7.3456]
[1750686581158,634.08,136.14,136.04,32.29122438]
[1750686581468,80.92,136.15,136.07,32.29122438]
[1750686581669,80.92,136.15,136.05,32.29122438]
[1750686582567,80.92,136.15,136.05,94.29122438]
[1750686583068,32.29122438,136.19,136.09,7.3452]
[1750686583270,32.29122438,136.19,136.05,94.29122438]
[1750686583663,7.3451,136.1,136.03,32.29122438]
[1750686583866,32.29122438,136.16,136.03,32.29122438]
[1750686584162,7.3463,136.08,136.03,32.29122438]
[1750686584364,321.39122438,136.13,135.98,666.69122438]
[1750686584561,80.92,136.12,136.02,7.3488]
[1750686584766,32.29122438,136.1,135.98,666.69122438]
[1750686585068,715.42,136.12,135.95,32.29122438]
[1750686585376,32.29122438,136.09,135.95,32.29122438]
[1750686585675,32.29122438,136.09,136.0,7.3499]
[1750686585869,7.3485,136.04,136.0,7.3499]
[1750686586172,32.29122438,136.09,136.01,7.3494]
[1750686586573,7.348,136.05,136.01,7.3494]
[1750686587073,113.23122438,136.06,135.95,32.29122438]
[1750686587566,7.3512,135.99,135.91,747.71122438]
[1750686587768,32.29122438,136.03,135.91,747.71122438]
[1750686588064,208.16,136.05,135.91,747.71122438]
[1750686588373,32.29122438,136.04,135.91,747.71122438]
[1750686588576,7.3508,136.0,135.91,747.71122438]
[1750686588875,32.29122438,136.04,135.91,747.71122438]
[1750686589175,32.29122438,136.04,135.98,7.351]
[1750686589571,88.2873,136.06,135.94,32.38232658]
[1750686589877,80.94,136.06,135.94,32.38232658]
[1750686590068,88.2871,136.06,135.97,32.38232658]
[1750686590274,32.38232658,136.1,135.97,32.38232658]
[1750686590573,7.348,136.05,135.95,62.0]
[1750686590774,32.38232658,136.1,135.96,32.38232658]
[1750686591274,32.38232658,136.1,135.99,32.38232658]
[1750686591678,7.3463,136.08,135.99,32.38232658]
[1750686591878,80.96,136.11,135.99,32.38232658]
[1750686592778,7.3462,136.08,135.99,32.38232658]
[1750686593072,32.35472561,136.09,135.97,113.31472561]
[1750686593271,7.348,136.05,136.01,7.3493]
[1750686593578,7.348,136.05,135.97,113.31472561]
[1750686593777,7.3478,136.05,136.02,7.3493]
[1750686594079,32.35472561,136.09,135.97,113.31472561]
[1750686594978,80.96,136.11,135.98,32.3618118]
[1750686595167,80.96,136.11,135.97,80.96]
[1750686595371,7.3464,136.08,136.04,7.3477]
[1750686595572,7.3464,136.08,135.98,32.3618118]
[1750686595779,80.96,136.11,135.98,32.3618118]
[1750686595980,80.96,136.11,136.01,32.3618118]
[1750686596382,88.3045,136.11,136.08,7.3459]
[1750686596584,80.96,136.11,136.01,32.3618118]
[1750686596971,80.96,136.11,136.01,32.34620794]
[1750686597481,7.345,136.1,136.01,32.34620794]
[1750686597782,113.30620794,136.11,135.97,80.96]
[1750686597982,7.3468,136.07,135.98,32.34620794]
[1750686598376,113.30620794,136.11,135.98,32.34620794]
[1750686598582,32.34620794,136.08,135.94,32.34620794]
[1750686598983,7.3496,136.02,135.94,32.34620794]
[1750686599183,113.30620794,136.05,135.92,32.34620794]
[1750686599384,32.34620794,136.02,135.91,80.96]
[1750686599581,32.34620794,136.02,135.89,32.34620794]
[1750686599785,32.34620794,135.99,135.86,113.30620794]
[1750686599980,84.14241745,135.98,135.86,113.30620794]
[1750686600178,32.34620794,135.96,135.81,80.96]
[1750686600383,3.18316545,135.95,135.82,32.34620794]
[1750686600579,32.34620794,135.93,135.81,80.96]
[1750686600786,84.34574528,135.92,135.79,32.34620794]
[1750686600983,3.38574528,135.91,135.82,32.34620794]
[1750686601182,80.96,135.92,135.82,32.34620794]
[1750686601389,3.38559875,135.91,135.82,32.34620794]
[1750686601585,3.38559875,135.9,135.87,7.3571]
[1750686601786,7.1327,135.91,135.82,32.34620794]
[1750686601983,7.1327,135.91,135.84,32.43193153]
[1750686602288,81.0,136.0,135.88,32.41245341]
[1750686602489,3.43342135,135.99,135.86,32.41245341]
[1750686602691,81.0,136.0,135.86,32.41245341]
[1750686602692,3.43342135,135.98,135.86,32.41245341]
[1750686602881,3.43342135,135.97,135.89,32.41245341]
[1750686603083,3.43342135,135.96,135.95,7.3531]
[1750686603290,3.43364716,135.96,135.89,32.41245341]
[1750686603486,113.41245341,136.0,135.89,32.41245341]
[1750686603690,3.43413254,135.99,135.89,32.41245341]
[1750686603989,3.43413254,135.98,135.89,32.41245341]
[1750686604188,3.43413254,135.97,135.89,32.41245341]
[1750686604395,3.43413254,135.96,135.89,32.41245341]
[1750686604702,7.3547,135.92,135.88,7.3566]
[1750686604885,32.41245341,135.96,135.85,32.41245341]
[1750686605092,32.41245341,135.93,135.82,32.41245341]
[1750686605289,3.4344721,135.92,135.82,32.41245341]
[1750686605587,3.4344721,135.92,135.79,62.0]
[1750686605588,3.43373117,135.91,135.85,32.41245341]
[1750686605788,80.6,135.94,135.85,32.41245341]
[1750686605989,3.43034472,135.93,135.85,32.41245341]
[1750686606183,7.3511,135.99,135.91,32.41245341]
[1750686606494,3.41748568,135.98,135.91,32.41245341]
[1750686606684,3.41748568,135.97,135.93,32.41245341]
[1750686606885,7.3516,135.98,135.94,7.3533]
[1750686607085,3.41599995,135.97,135.93,32.41245341]
[1750686607294,7.162,135.97,135.96,7.3525]
[1750686607987,3.41432065,136.0,135.99,7.3509]
[1750686608187,80.6,136.06,135.96,32.41245341]
[1750686608394,3.41370263,136.05,136.03,7.3485]
[1750686608686,80.6,136.07,135.99,32.41245341]
[1750686608892,3.41406609,136.06,135.99,32.41245341]
[1750686609095,3.41406609,136.06,135.96,80.6]
[1750686609096,3.41406609,136.05,136.02,32.41245341]
[1750686609390,635.12,136.1,136.02,32.41245341]
[1750686609591,10.7587561,136.09,136.05,7.3473]
[1750686609886,3.4131561,136.08,136.05,7.3473]
[1750686610084,3.4131561,136.07,136.02,32.41245341]
[1750686610286,80.6,136.12,136.02,32.41245341]
[1750686610486,3.41287764,136.11,136.02,32.41245341]
[1750686610692,3.41284618,136.1,136.05,32.41245341]
[1750686610895,80.6,136.12,136.05,32.41245341]
[1750686611095,3.41414992,136.11,136.07,7.3461]
[1750686611398,80.6,136.12,136.05,32.41245341]
[1750686611589,80.6,136.12,136.07,7.3461]
[1750686611793,7.3444,136.11,136.07,7.3461]
[1750686611988,80.6,136.12,136.05,32.32966291]
[1750686612205,3.41383778,136.11,136.02,80.6]
[1750686612391,3.41383778,136.11,136.03,32.32966291]
[1750686612592,80.6,136.12,136.03,32.32966291]
[1750686612995,3.41432151,136.11,136.0,32.32966291]
[1750686613293,7.3453,136.1,136.06,7.3467]
[1750686613691,7.3453,136.1,136.03,32.32966291]
[1750686613692,5.95845749,136.11,136.03,32.32966291]
[1750686614090,5.95845749,136.11,136.04,7.3481]
[1750686614296,3.41605749,136.1,135.99,32.32966291]
[1750686614794,3.41605749,136.1,136.02,32.32966291]
[1750686615398,3.41605749,136.09,136.02,32.32966291]
[1750686615594,3.41605749,136.1,136.02,32.32966291]
[1750686615797,34.87206291,136.11,136.0,32.32966291]
[1750686616096,3.42489462,136.1,135.97,80.6]
[1750686616303,32.32966291,136.08,135.97,80.6]
[1750686616487,3.42489462,136.07,135.97,80.6]
[1750686616694,7.3496,136.02,135.98,7.3511]
[1750686616994,2.753,136.01,135.93,32.32966291]
[1750686617299,32.32966291,135.99,135.87,32.32966291]
[1750686617493,32.32966291,135.99,135.85,32.32966291]
[1750686617694,7.3529,135.96,135.92,7.3544]
[1750686617897,35.63215935,135.99,135.85,32.32966291]
[1750686618199,7.3531,135.95,135.91,7.3549]
[1750686618396,3.30249644,135.98,135.85,32.32966291]
[1750686618597,32.32966291,135.96,135.85,32.32966291]
[1750686619302,3.3064176,135.95,135.83,32.32966291]
[1750686619497,80.58,135.94,135.83,32.32966291]
[1750686619992,7.355,135.92,135.88,7.3565]
[1750686620190,2.7853,135.91,135.83,32.32966291]
[1750686620795,35.11496291,135.91,135.79,112.90966291]
[1750686621190,35.11496291,135.91,135.78,32.32966291]
[1750686621590,3.30571519,135.9,135.78,32.32966291]
[1750686621905,35.11496291,135.91,135.78,32.32966291]
[1750686621906,35.11496291,135.91,135.81,20.5701257]
[1750686622100,35.11496291,135.91,135.78,32.32966291]
[1750686622101,6.09037365,135.91,135.78,32.32966291]
[1750686622393,10.1407,135.91,135.84,32.45100684]
[1750686622594,2.7853,135.91,135.76,634.9]
[1750686623000,7.3572,135.88,135.83,7.3592]
[1750686623205,7.3572,135.88,135.76,634.9]
[1750686623206,2.7853,135.91,135.76,634.9]
[1750686623501,2.7853,135.91,135.83,32.44051598]
[1750686623798,35.23063032,135.91,135.8,32.44533032]
[1750686624303,38.51829124,135.91,135.78,32.44533032]
[1750686624495,7.3583,135.86,135.82,7.3597]
[1750686624695,80.62,135.87,135.78,32.44533032]
[1750686624896,80.62,135.87,135.81,32.44533032]
[1750686625097,80.62,135.87,135.86,7.3579]
[1750686625293,2.7853,135.91,135.85,32.43016597]
[1750686625495,2.7853,135.91,135.88,32.43016597]
[1750686625697,2.7853,135.91,135.81,80.62]
[1750686625896,2.7853,135.91,135.84,32.41336401]
[1750686626403,2.7853,135.91,135.87,32.41336401]
[1750686626705,635.28,135.99,135.9,32.41336401]
[1750686626914,80.64,136.04,135.94,32.38802199]
[1750686627207,116.30101379,136.03,135.95,7.3526]
[1750686627402,3.27301562,136.02,135.91,32.38802199]
[1750686627703,80.64,136.03,135.94,32.38802199]
[1750686627906,3.27471242,136.02,135.92,32.38802199]
[1750686628298,7.3514,135.98,135.94,7.3533]
[1750686628703,3.27471242,136.02,135.92,32.38802199]
[1750686629201,3.27471242,136.01,135.89,32.38802199]
[1750686629507,32.38802199,135.97,135.86,32.38802199]
[1750686629707,80.64,135.96,135.83,32.38802199]
[1750686629908,80.64,135.96,135.85,32.43874741]
[1750686630108,80.64,135.96,135.85,32.41429667]
[1750686630405,80.64,135.96,135.89,32.42102149]
[1750686630604,635.32,135.98,135.89,32.42102149]
[1750686630906,207.06,136.04,135.98,7.3514]
[1750686630907,80.64,136.04,135.98,7.3514]
[1750686631205,80.64,136.04,135.92,32.42102149]
[1750686631904,80.64,136.04,135.97,7.3516]
[1750686632110,9.05738938,136.03,135.92,32.39146799]
[1750686632399,5.79080135,136.03,135.9,142.64]
[1750686632608,32.39146799,135.98,135.86,32.39146799]
[1750686632909,32.39146799,135.95,135.83,32.39146799]
[1750686633304,7.3562,135.9,135.86,7.3576]
[1750686633501,657.32,136.03,135.85,32.43991946]
[1750686633702,32.42305264,135.98,135.85,32.42305264]
[1750686634010,32.42305264,135.99,135.87,32.42305264]
[1750686634410,32.42305264,135.99,135.91,7.3549]
[1750686634609,32.42305264,135.99,135.87,32.42305264]
[1750686635001,206.88,136.01,135.87,32.42305264]
[1750686635411,7.3517,135.98,135.95,7.353]
[1750686635708,206.88,136.01,135.9,32.42305264]
[1750686635910,7.351,135.99,135.9,32.42305264]
[1750686636100,206.88,136.01,135.9,32.42305264]
[1750686636304,206.88,136.01,135.93,32.42305264]
[1750686636501,29.3673,136.16,135.88,79.76]
[1750686636502,79.76,136.1,135.98,32.38156948]
[1750686636727,88.80041095,136.09,135.98,32.38156948]
[1750686636906,7.3491,136.03,135.94,32.38156948]
[1750686637105,3.27821012,136.08,135.97,32.38156948]
[1750686637305,79.76,136.09,136.0,32.38156948]
[1750686639204,79.76,136.09,136.03,32.38156948]